[Event "Israeli Championship 2022"]
[Site "Yosiah Arad"]
[Date "2022.12.07"]
[Round "3.8"]
[White "Mikhalevski, Victor"]
[Black "Shachar, Ehud"]
[Result "1/2-1/2"]
[ECO "A96"]
[WhiteElo "2517"]
[BlackElo "2319"]
[Annotator "TA"]
[PlyCount "50"]
[EventDate "2022.12.05"]
[EventType "swiss"]
[EventCountry "ISR"]
[SourceTitle "playchess.com"]
[Source "ChessBase"]
[SourceQuality "1"]
[TimeControl "40/5400+30:1800+30"]

{[%evp 14,50,37,41,45,35,51,51,57,60,84,69,117,88,81,86,109,88,84,76,107,93,86,93,91,91,131,75,85,-133,-130,-284,-272,-276,-264,-253,-259,-253,-257]} 1. Nf3 {[%emt 0:00:04]} e6 {[%emt 0:00:07]} 2. g3 {[%emt 0:00:13]} f5 {[%emt 0:00:06]} 3. Bg2 {[%emt 0:00:06]} Nf6 {[%emt 0:00:10][%cal Bg8f6,Bf6e4,Be4d2][%mdl 32]} 4. O-O {[%emt 0:00:18]} Be7 {[%emt 0:00:07]} 5. b3 {[%emt 0:00:20]} O-O {[%emt 0:00:10]} 6. Bb2 {[%emt 0:00:04]} d6 {[%emt 0:04:50]} 7. d4 {[%emt 0:00:55]} a5 {[%emt 0:02:48] Recently 7...Ne4 got a lot of attention.} 8. c4 {[%emt 0:04:26]} Ne4 {[%emt 0:04:54] A96: Classical Dutch: Fluid Systems: Early deviations.} 9. Nbd2 {[%emt 0:00:34]} Nxd2 {[%emt 0:00:19]} 10. Qxd2 {[%emt 0:00:37]} Qe8 {[%emt 0:16:13] [#] White is slightly better.} 11. Ne1 $146 {[%emt 0:07:30]} ({Predecessor:} 11. a4 c6 12. Bc3 Bd8 13. Qc2 Nd7 14. e4 f4 15. e5 dxe5 16. Nxe5 Nxe5 17. dxe5 {0-1 (36) Bradbury,N (2345)-Wiley,T (2215) Edinburgh 1985}) 11... Bf6 {[%emt 0:04:33]} 12. Nd3 {[%emt 0:01:11]} Nd7 {[%emt 0:10:57]} (12... Nc6 $14 {should be considered.}) 13. f4 {[%emt 0:02:30]} Nb6 {[%emt 0:08:29]} 14. Rac1 {[%emt 0:15:12]} Qe7 {[%emt 0:10:50]} 15. a4 {[%emt 0:05:07]} c6 {[%emt 0:05:20]} 16. Bc3 {[%emt 0:06:52]} Nd7 {[%emt 0:03:00]} 17. e3 {[%emt 0:15:24]} ({Don't play} 17. Bxa5 $6 Bxd4+ 18. Kh1 e5 $11) 17... Qd8 {[%emt 0:01:12]} 18. e4 {[%emt 0:10:08] Against d5. White is more active.} fxe4 {[%emt 0:01:09]} 19. Bxe4 {[%emt 0:00:04]} Qb6 {[%emt 0:04:39][%csl LRb3,LRd4]} 20. Qb2 {[%emt 0:02:03]} ({White should play} 20. Nf2) 20... d5 {[%emt 0:03:10][%cal Bd6d5,Bd5e4,Be4e3][%mdl 32]} 21. c5 $2 {[%emt 0:01:18] [#]} (21. Bf3 $16 {and life is bright.}) 21... Qa6 $17 {[%emt 0:01:13]} 22. b4 $2 {[%emt 0:03:15] This costs White the game.} (22. Bxh7+ $17 {might work better.} Kxh7 23. Qc2) 22... dxe4 $19 {[%emt 0:02:19] Black has a decisive advantage.} 23. b5 {[%emt 0:00:06]} cxb5 {[%emt 0:02:03]} 24. axb5 {[%emt 0:00:08]} Qa7 {[%emt 0:00:05]} 25. Nf2 {[%emt 0:01:15]} e3 {[%emt 0:04:47][%mdl 32768] Weighted Error Value: White=0.43/Black=0.12 (very precise) . An unexpected result.} 1/2-1/2

[Event "Israeli Championship 2022"]
[Site "Yosiah Arad"]
[Date "2022.12.07"]
[Round "3.9"]
[White "Aizenberg, Benny"]
[Black "Zanan, Evgeny"]
[Result "0-1"]
[ECO "C77"]
[WhiteElo "2375"]
[BlackElo "2485"]
[Annotator "TA"]
[PlyCount "74"]
[EventDate "2022.12.05"]
[EventType "swiss"]
[EventCountry "ISR"]
[SourceTitle "playchess.com"]
[Source "ChessBase"]
[SourceQuality "1"]
[TimeControl "40/5400+30:1800+30"]

{[%evp 16,74,5,0,25,18,36,5,0,0,0,-30,0,-18,-16,-49,-47,-52,-25,-28,-14,-26,-16,-22,0,-21,-3,-42,-33,-39,-41,-101,-136,-133,-129,-443,-304,-318,-264,-266,-244,-244,-221,-216,-206,-346,-175,-619,-600,-1208,-1288,-1273,-1175,-1235,-1261,-1246,-1240,-1241,-1230,-1063,-996]} 1. e4 {[%emt 0:00:02]} e5 {[%emt 0:05:39]} 2. Nf3 {[%emt 0:00:06]} Nc6 {[%emt 0:00:03]} 3. Bb5 {[%emt 0:00:04]} a6 {[%emt 0:00:05]} 4. Ba4 {[%emt 0:00:03]} Nf6 {[%emt 0:00:05]} 5. Nc3 {[%emt 0:00:03]} b5 {[%emt 0:08:32]} 6. Bb3 {[%emt 0:00:02]} Be7 {[%emt 0:03:03]} 7. d3 {[%emt 0:00:07]} d6 {[%emt 0:03:40]} 8. a3 {[%emt 0:00:04]} O-O {[%emt 0:01:05]} 9. O-O {[%emt 0:01:59] 9.0-0 is better than 9.Nd5.} h6 {[%emt 0:03:38] C77: Ruy Lopez: 3...a6 4 Ba4 Nf6, unusual lines.} 10. h3 {[%emt 0:02:19]} Be6 {[%emt 0:04:13]} 11. Bxe6 {[%emt 0:00:23]} fxe6 {[%emt 0:00:06] The position is equal.} 12. Bd2 {[%emt 0:02:30]} Qe8 {[%emt 0:01:41] [#]} 13. Kh2 $146 {[%emt 0:04:02]} ({Predecessor:} 13. Ne2 Qg6 14. Ng3 Nh7 15. c3 Rf7 16. d4 exd4 17. cxd4 Raf8 18. Rc1 Rxf3 19. Rxc6 {½-½ (62) Petrova,I (2127)-Dilanyan,G (2247) Chess.com INT 2022}) 13... Nh5 {[%emt 0:07:40]} 14. Ng1 {[%emt 0:04:28]} g5 {[%emt 0:12:29]} 15. a4 {[%emt 0:06:07]} b4 {[%emt 0:01:02]} 16. Nce2 {[%emt 0:00:52][%cal Bc3e2,Be2c1,Bc1b3,Bb3a1,Ba1c2,Bc2e3][%mdl 32]} Qg6 {[%emt 0:02:06]} 17. Rc1 {[%emt 0:05:35]} Rab8 {[%emt 0:08:19]} 18. c3 {[%emt 1:10:44]} b3 {[%emt 0:00:27]} 19. c4 {[%emt 0:00:00] Against d5} Nf6 {[%emt 0:12:46]} 20. Rc3 {[%emt 0:00:00]} Na5 {[%emt 0:06:07]} 21. Nc1 {[%emt 0:00:00][%cal Rc1b3]} c5 {[%emt 0:01:51]} 22. Nxb3 {[%emt 0:00:00]} Nc6 {[%emt 0:00:05][%cal Ba5c6,Bc6d4,Bd4f3][%mdl 32]} 23. Bc1 {[%emt 0:00:00]} (23. f3 $15) 23... g4 $17 {[%emt 0:02:53]} 24. Na1 {[%emt 0:00:00]} Rf7 {[%emt 0:01:35] And now ...gxh3 would win. Black is much more active.} 25. g3 $2 {[%emt 0:00:00][%mdl 8192] Loses the game.} (25. Nc2 $17 {is a better chance.}) 25... gxh3 {[%emt 0:01:40]} 26. Nxh3 {[%emt 0:00:00]} Nd4 {[%emt 0:02:01]} 27. Nc2 {[%emt 0:00:00]} Ng4+ {[%emt 0:03:02]} 28. Kg2 {[%emt 0:00:00]} Nf3 {[%emt 0:00:22][%cal Oe7h4][%mdl 1024] ...Bh4! is the strong threat. Black has strong compensation.} 29. Ne3 {[%emt 0:00:00] [#]} h5 {[%emt 0:01:08]} 30. Rc2 {[%emt 0:00:00]} (30. Nf5 $142 exf5 31. Qxf3) 30... Rbf8 {[%emt 0:01:49]} (30... Nd4 $142 {Threatens to win with ...Rbf8.} 31. Kh1 Nxc2 32. Qxc2 Nxe3 33. Bxe3 Qg4) 31. Rh1 $2 {[%emt 0:00:00]} (31. Nf5) 31... Nd4 $19 {[%emt 0:01:56] White must now prevent ...Rf3. Black is clearly winning.} 32. Rd2 {[%emt 0:00:00]} Nxe3+ {[%emt 0:01:10]} 33. fxe3 {[%emt 0:00:00] [#]} Rg7 $1 {[%emt 0:00:10][%csl Gg7][%cal Rg6g3]} 34. Rh2 {[%emt 0:00:00]} (34. Rg1 Qxg3+) 34... Nf3 {[%emt 0:01:18]} 35. Kh1 {[%emt 0:00:00]} Nxh2 {[%emt 0:00:10]} 36. Rxh2 {[%emt 0:00:00]} Qxg3 {[%emt 0:00:12]} 37. Bd2 {[%emt 0:00:00]} Rf3 {[%emt 0:00:39] Weighted Error Value: White=0.77/Black=0.23 (precise)} 0-1

[Event "Israeli Championship 2022"]
[Site "Yosiah Arad"]
[Date "2022.12.07"]
[Round "3.10"]
[White "Streltsov, Alexey"]
[Black "Rozen, Eytan"]
[Result "1/2-1/2"]
[ECO "B13"]
[WhiteElo "2313"]
[BlackElo "2459"]
[Annotator "TA"]
[PlyCount "166"]
[EventDate "2022.12.05"]
[EventType "swiss"]
[EventCountry "ISR"]
[SourceTitle "playchess.com"]
[Source "ChessBase"]
[SourceQuality "1"]
[TimeControl "40/5400+30:1800+30"]

{[%evp 9,166,0,17,6,25,29,26,23,32,18,0,0,18,18,42,44,66,48,86,84,89,83,95,63,92,31,32,0,77,65,73,44,45,38,45,27,18,-19,-12,-37,-29,-25,-14,-41,-26,-50,-50,-81,-73,-96,-100,-160,-163,-288,-279,-281,-279,-297,-309,-293,-298,-295,0,-300,-305,-339,-297,-301,-303,-1144,-1127,-1158,-1159,-1152,-1089,-1155,-1139,-1139,-1134,-1123,-1079,-1031,-624,-540,-181,-169,0,0,0,0,0,-50,-49,-52,-48,-49,-29,-38,8,8,8,5,8,0,0,0,0,0,0,0,0,0,0,0,0,0,10,0,11,12,153,19,15,8,8,0,5,0,0,0,0,0,0,0,0,0,0,0,0,0,0,0,0,0,0,0,0,0,0,0,0,0,0,0,0,0,0,0,0]} 1. e4 {[%emt 0:00:03]} c6 {[%emt 0:00:12]} 2. d4 {[%emt 0:00:03]} d5 {[%emt 0:00:04]} 3. exd5 {[%emt 0:00:08]} cxd5 {[%emt 0:00:05]} 4. Bd3 {[%emt 0:00:07]} Nf6 {[%emt 0:00:11]} 5. h3 {[%emt 0:00:08]} g6 {[%emt 0:01:26]} (5... Nc6 $5 {[%cal Rc6d4]}) 6. Nf3 {[%emt 0:00:11] B13: Caro-Kann: Exchange Variation and Panov-Botvinnik Attack.} Bg7 {[%emt 0:00:13]} 7. O-O {[%emt 0:00:19]} O-O {[%emt 0:00:16]} 8. Re1 {[%emt 0:01:19] White has an edge.} Bf5 {[%emt 0:00:27]} 9. Bf1 {[%emt 0:00:36]} Nc6 {[%emt 0:00:36]} 10. c3 {[%emt 0:00:12]} a6 {[%emt 0:00:34]} 11. Bf4 {[%emt 0:06:24]} Ne4 {[%emt 0:00:57]} 12. Nbd2 {[%emt 0:01:14]} b5 {[%emt 0:01:34] [#]} 13. a3 $146 {[%emt 0:01:29]} ({Predecessor:} 13. g4 Nxd2 14. Qxd2 Bd7 15. Bg2 Rc8 16. b4 Re8 17. Re2 a5 18. a3 Ra8 19. Ree1 {1-0 (92) Galchenko,M (2395)-Lie,K (2531) Norway 2019}) 13... Qb6 {[%emt 0:01:46]} 14. Nxe4 {[%emt 0:03:07]} Bxe4 {[%emt 0:02:27]} 15. Nd2 {[%emt 0:00:09]} Bf5 {[%emt 0:00:34]} 16. Qf3 {[%emt 0:01:34]} Rad8 {[%emt 0:03:26]} 17. Nb3 {[%emt 0:01:48]} ({Better is} 17. b4 $16) 17... Bc2 $14 {[%emt 0:03:48]} 18. Nd2 {[%emt 0:02:04]} f6 {[%emt 0:05:10]} (18... Bf5 $1 $11) 19. Rac1 {[%emt 0:12:26]} (19. Rec1 $5 {[%cal Rc1c2]} Bf5 20. Be3 $11) 19... Bf5 {[%emt 0:00:17]} 20. Nb3 {[%emt 0:00:17]} (20. g4 Bc8 $11) 20... e5 {[%emt 0:07:11]} 21. Be3 {[%emt 0:00:07]} e4 {[%emt 0:01:53]} 22. Qg3 {[%emt 0:02:50][%cal Oa3a4]} Bc8 {[%emt 0:10:56]} 23. Nc5 {[%emt 0:01:58][%cal Oc5e4]} (23. f3 $5 {[%cal Rf3e4]}) 23... Ne7 $1 {[%emt 0:01:04]} 24. Bf4 {[%emt 0:16:43]} Nf5 {[%emt 0:01:28]} 25. Bc7 {[%emt 0:07:58]} Qc6 {[%emt 0:00:16]} 26. Qh2 {[%emt 0:00:11]} Rde8 {[%emt 0:05:43]} 27. Ba5 {[%emt 0:08:52]} Rf7 {[%emt 0:10:26]} 28. Qb8 {[%emt 0:01:59][%cal Oa3a4]} Bh6 {[%emt 0:03:06][%cal Bg7h6,Bh6d2,Bd2a5,Ba5c7][%mdl 32]} 29. Ra1 {[%emt 0:02:18]} Rfe7 {[%emt 0:03:16]} 30. Be2 {[%emt 0:13:08]} (30. Qb6 $142 Qxb6 31. Bxb6) 30... Bd2 $17 {[%emt 0:05:03]} 31. Rf1 {[%emt 0:08:19]} (31. Bb4 {keeps fighting.}) 31... Nxd4 $19 {[%emt 0:02:28]} 32. cxd4 {[%emt 0:00:08]} Bxa5 {[%emt 0:00:04]} 33. Qg3 {[%emt 0:00:24]} Bc7 {[%emt 0:00:55]} 34. Qc3 {[%emt 0:02:45]} Qd6 {[%emt 0:01:14][%csl Gc7][%cal Rd6h2]} 35. Qg3 {[%emt 0:02:08] Inhibits Qh2+.} Qc6 {[%emt 0:02:37]} (35... Qd8 $19 36. Qh4 g5) 36. Qh4 {[%emt 0:00:40][%mdl 8192]} (36. Qc3 $1 $11 {and White is okay.}) 36... f5 {[%emt 0:00:42]} (36... Qd6 $2 37. Qg3 $19) 37. a4 {[%emt 0:01:28]} Qd6 {[%emt 0:01:50][%csl Gc7][%cal Rd6h2]} 38. g3 {[%emt 0:00:20]} b4 {[%emt 0:02:15]} 39. f4 $2 {[%emt 0:02:01]} (39. Rac1) 39... exf3 {[%emt 0:00:21]} 40. Bxf3 {[%emt 0:00:01]} g5 {[%emt 0:06:23]} (40... Qxg3+ $2 41. Qxg3 Bxg3 42. Bxd5+ Kg7 43. Kg2 $19) 41. Qxg5+ {[%emt 0:30:06]} Rg7 {[%emt 0:30:01]} 42. Qh4 {[%emt 0:00:12]} Rxg3+ {[%emt 0:00:24]} (42... Qxg3+ $2 43. Qxg3 Bxg3 44. Kh1 $19 (44. Bxd5+ $2 Kh8 $19)) 43. Kf2 {[%emt 0:00:07] [#]} Re4 $1 {[%emt 0:04:36][%mdl 512]} 44. Bxe4 {[%emt 0:00:00]} dxe4 {[%emt 0:00:00]} 45. Rad1 {[%emt 0:00:00]} Rg2+ {[%emt 0:00:00][%mdl 64] Skewer} 46. Ke3 {[%emt 0:00:00]} Qh2 $2 {[%emt 0:00:00]} (46... Rxb2 $2 47. Rf2 Rxf2 48. Qxf2 $19) (46... Qd5 47. Rf4 h6) 47. Rf2 {[%emt 0:00:00]} Qg3+ $2 {[%emt 0:00:00]} (47... f4+ 48. Kxe4 Rxf2 49. Qg5+ Kh8 50. Qf6+ Kg8 51. Qg5+ Kh8 52. Qf6+ Kg8 53. Qg5+ $11) (47... Rxf2 $1 $19 {[%csl Gh2][%cal Rf2e2]} 48. Qg5+ Kf8 49. Qh6+ Ke7 50. Qh4+ Kd6 51. Qxf2 Qxh3+ 52. Kd2 Ke7) 48. Qxg3+ $11 {[%emt 0:00:00]} Rxg3+ {[%emt 0:00:00]} 49. Ke2 {[%emt 0:00:00][%cal Oa4a5]} f4 {[%emt 0:00:00] Against a5} (49... Rxh3 50. Rg1+ Kf8 51. Nxe4 $16) 50. Rc1 {[%emt 0:00:00]} ({White should try} 50. Nxe4 $11 Re3+ 51. Kd2 Rxe4 52. Rc1 Rxd4+ 53. Ke1) 50... e3 $15 {[%emt 0:00:00]} 51. Ne4 {[%emt 0:00:00][%csl LRc7,LRg3]} exf2 {[%emt 0:00:00]} (51... Rxh3 $2 52. Nf6+ (52. Rxc7 Bg4+ 53. Kf1 e2+ 54. Rxe2 Bxe2+ 55. Kxe2 Re3+ 56. Kf2 Rxe4 $11) (52. Rg2+ Kf8 $18) 52... Kf8 53. Rxc7 $18) 52. Rxc7 {[%emt 0:00:00][%mdl 4096] Endgame KRB-KRN} Bf5 {[%emt 0:02:56]} 53. Nf6+ {[%emt 0:00:00]} (53. Nxg3 $2 fxg3 54. Rc1 Bd3+ $1 {[%mdl 512]} 55. Kf3 (55. Kxd3 $2 g2 $19) 55... f1=Q+ $19) 53... Kh8 {[%emt 0:05:00]} (53... Kf8 $1 $15 54. Nxh7+ Bxh7 55. Rxh7 Rb3 56. Kxf2 Rxb2+ 57. Kf3 Rb1 58. Rh8+ (58. Kxf4 $2 b3 $19) 58... Ke7 59. Rh7+ Kd6 60. Rh6+ Kd5) 54. Kxf2 $11 {[%emt 0:00:00]} Rxh3 {[%emt 0:00:25]} 55. d5 {[%emt 0:00:00] And now d6 would win.} Rd3 {[%emt 0:01:58] Against d6} 56. Ra7 {[%emt 0:00:00]} Bg6 $1 {[%emt 0:01:21] Prevents d6.} 57. Ke2 {[%emt 0:04:40]} f3+ {[%emt 0:01:48]} 58. Kf2 {[%emt 0:00:03]} h5 {[%emt 0:00:24][%cal Oa6a5]} 59. Rxa6 {[%emt 0:01:49]} Kg7 {[%emt 0:00:18] Prevents d6.} 60. Rb6 {[%emt 0:00:14]} h4 {[%emt 0:02:51] Hoping for ...h3.} 61. Ng4 $1 {[%emt 0:03:10][%cal Ob6g6]} Rd4 {[%emt 0:01:25]} 62. Rb7+ {[%emt 0:00:02]} (62. Kxf3 $2 {is the wrong capture.} Bh5 63. Rb7+ Kg6 $19) 62... Kf8 {[%emt 0:00:42]} 63. Ne5 {[%emt 0:00:16]} (63. a5 {feels hotter.} Rxg4 64. a6 Rg2+ 65. Kxf3 Rxb2 66. Rb8+) 63... Rd2+ {[%emt 0:01:08]} 64. Kxf3 {[%emt 0:01:03]} Bh5+ {[%emt 0:00:33] [#]} (64... Be8 $11 {keeps the balance.}) 65. Kf4 {[%emt 0:00:32] White is more active.} (65. Ke3 $1 $16 {[%cal Re3d2]} Re2+ 66. Kd4 Rxb2 67. d6 Rd2+ 68. Kc5 Rc2+ 69. Kb6 (69. Kxb4 $2 {too greedy.} Rb2+ 70. Kc5 Rxb7 $19)) 65... Be8 {[%emt 0:02:48] The position is equal.} 66. Rxb4 {[%emt 0:00:50]} h3 {[%emt 0:00:51][%cal Oh3h2] Threatens to win with ...h2!} 67. Kg3 {[%emt 0:00:13]} (67. Kf5 {seems wilder.} h2 68. Rh4 Bxa4 69. Nf3) 67... Rxd5 {[%emt 0:00:39]} 68. Ng4 {[%emt 0:01:26]} Rd3+ {[%emt 0:00:03]} 69. Kh2 {[%emt 0:00:39]} Bd7 {[%emt 0:00:09]} 70. a5 {[%emt 0:01:09] Strongly threatening a6.} Bxg4 {[%emt 0:00:52]} 71. Rxg4 {[%emt 0:00:29] aiming for Rb4. KR-KR} Rd2+ {[%emt 0:00:02]} 72. Kxh3 {[%emt 0:00:06]} Rxb2 {[%emt 0:00:09]} 73. a6 {[%emt 0:01:02]} Ra2 {[%emt 0:01:14]} 74. Rg6 {[%emt 0:00:08]} Kf7 {[%emt 0:00:07]} 75. Rh6 {[%emt 0:00:14]} Kg7 {[%emt 0:00:08]} 76. Rb6 {[%emt 0:00:07]} Kf7 {[%emt 0:00:15]} 77. Kg4 {[%emt 0:00:02]} Ke7 {[%emt 0:00:08]} 78. Kf5 {[%emt 0:00:28]} Kd7 {[%emt 0:00:07]} 79. Rh6 {[%emt 0:00:19]} Kc7 {[%emt 0:00:06]} 80. Ke5 {[%emt 0:00:06]} Kb8 {[%emt 0:00:05]} 81. Kd5 {[%emt 0:00:02]} Ka7 {[%emt 0:00:21]} 82. Kc5 {[%emt 0:00:03]} Rxa6 {[%emt 0:00:10]} 83. Rxa6+ {[%emt 0:00:04]} Kxa6 {[%emt 0:00:05] Black had all chances to win.   Weighted Error Value: White=0.32/Black=0.47} 1/2-1/2

[Event "Israeli Championship 2022"]
[Site "Yosiah Arad"]
[Date "2022.12.07"]
[Round "3.11"]
[White "Levitan, Tal"]
[Black "Tzidkiya, Yeshaayahu"]
[Result "1-0"]
[ECO "B27"]
[WhiteElo "2243"]
[BlackElo "2444"]
[Annotator "TA"]
[PlyCount "75"]
[EventDate "2022.12.05"]
[EventType "swiss"]
[EventCountry "ISR"]
[SourceTitle "playchess.com"]
[Source "ChessBase"]
[SourceQuality "1"]
[TimeControl "40/5400+30:1800+30"]

{[%evp 14,75,8,7,30,31,23,31,38,29,27,24,54,54,58,16,43,45,54,41,54,39,45,49,71,46,74,72,94,0,0,0,0,0,0,0,10,0,0,0,0,0,0,0,0,0,0,0,4,2,8,2,159,163,164,124,684,384,29977,29978,29979,29980,29980,29981]} 1. e4 {[%emt 0:00:03]} c5 {[%emt 0:00:06]} 2. Nf3 {[%emt 0:00:47]} g6 {[%emt 0:00:42]} 3. d4 {[%emt 0:00:29]} cxd4 {[%emt 0:00:14]} 4. Qxd4 {[%emt 0:00:04]} Nf6 {[%emt 0:00:04]} 5. Nc3 {[%emt 0:00:06]} Nc6 {[%emt 0:00:11]} 6. Qa4 {[%emt 0:00:06]} d6 {[%emt 0:00:25]} 7. e5 {[%emt 0:00:05]} dxe5 {[%emt 0:00:56]} 8. Nxe5 {[%emt 0:00:05][%cal Of1c4]} Qd4 {[%emt 0:09:58] Against Bc4. B27: Sicilian: 2 Nf3, unusual Black 2nd moves.} 9. Nxc6 {[%emt 0:00:41] Active counter play!} Qxa4 {[%emt 0:00:03]} 10. Nxa4 {[%emt 0:00:07] [#] Threatens to win with Nd4.} bxc6 {[%emt 0:00:03] White is slightly better.} 11. b3 {[%emt 0:05:18]} Bg7 {[%emt 0:00:28]} 12. Bb2 {[%emt 0:00:06]} O-O {[%emt 0:00:04]} 13. Bd3 {[%emt 0:16:44]} e5 {[%emt 0:01:11] [#]} 14. O-O $146 {[%emt 0:04:56]} ({Don't play} 14. Bxe5 Re8 15. f4 Ng4 $15) ({Predecessor:} 14. O-O-O Ng4 15. Rdf1 f5 16. Bc4+ Kh8 17. h3 Nh6 18. f3 Nf7 19. Ba3 Nd8 20. Bxf8 Bxf8 {1-0 (36) Skawinski,A (2358)-Malinovsky,P (2070) Pardubice 2021}) 14... Nd5 {[%emt 0:00:15]} 15. Rae1 {[%emt 0:10:59]} f6 {[%emt 0:09:13]} 16. Be4 {[%emt 0:03:53]} Bf5 {[%emt 0:04:17]} 17. Bxf5 {[%emt 0:09:22]} gxf5 {[%emt 0:00:16]} 18. Nc5 {[%emt 0:00:07]} Kf7 {[%emt 0:01:33]} 19. Rd1 {[%emt 0:04:04]} (19. c4 $5 {[%cal Rc4d5]} Nb6 20. Rd1 $14) 19... Rfc8 {[%emt 0:08:59]} 20. c4 {[%emt 0:04:53]} Nb6 {[%emt 0:00:22]} 21. Na6 {[%emt 0:03:53]} ({Better is} 21. Nb7 $16) 21... Bf8 $11 {[%emt 0:03:34]} 22. f4 {[%emt 0:06:44]} e4 {[%emt 0:00:28]} 23. a4 {[%emt 0:00:15] aiming for a5.} Rd8 {[%emt 0:03:21]} 24. a5 {[%emt 0:00:12]} Nd7 {[%emt 0:00:40]} 25. b4 {[%emt 0:00:56] Inhibits Nc5.} Rac8 $1 {[%emt 0:04:07]} 26. Bd4 {[%emt 0:18:48]} c5 {[%emt 0:11:59]} 27. Bxc5 {[%emt 0:00:04]} Nxc5 {[%emt 0:00:24]} 28. Nxc5 {[%emt 0:00:59]} Bxc5+ {[%emt 0:00:52]} 29. bxc5 {[%emt 0:00:06] White wants to play Rxd8.} Ke6 {[%emt 0:02:41]} 30. Rxd8 {[%emt 0:02:02]} Rxd8 {[%emt 0:01:03][%mdl 4096] Endgame KR-KR} 31. Rb1 {[%emt 0:00:03] And now a6 would win.} Rd4 {[%emt 0:23:19]} (31... Rd2 {with more complications.} 32. Rb7 e3 33. Kf1 Rf2+) 32. Rb7 {[%emt 0:01:32][%csl LRa7,LRh7]} h5 $2 {[%emt 0:09:31]} ({Black should play} 32... Rxc4 $11 33. Rxh7 (33. Rxa7 Rc1+ 34. Kf2 Rxc5 $14) 33... e3) 33. Rxa7 $16 {[%emt 0:00:47]} Rxc4 {[%emt 0:00:06]} 34. a6 {[%emt 0:00:47][%cal Ba5a6,Ba6a7][%mdl 32] Black must now prevent Ra8.} Rxc5 $2 {[%emt 0:01:08][%mdl 8192] [#] A mistake that costs the game.} (34... e3 $16 35. Kf1 Rxf4+ 36. Ke2 Ra4) 35. Ra8 $1 $18 {[%emt 0:00:14] Strongly threatening a7.} Rc7 {[%emt 0:03:10]} (35... Ra5 $2 36. a7 Ra1+ 37. Kf2 $18) (35... Rc1+ $18 36. Kf2 Rc2+ 37. Kg3 Rc3+ 38. Kh4 Rc7) 36. a7 {[%emt 0:00:07] White mates.} Re7 {[%emt 0:00:04]} 37. h4 {[%emt 0:00:30]} Kf7 {[%emt 0:00:58]} 38. Rh8 {[%emt 0:00:07] Weighted Error Value: White=0.05 (flawless) /Black=0.50} 1-0

[Event "Israeli Championship 2022"]
[Site "Yosiah Arad"]
[Date "2022.12.07"]
[Round "3.12"]
[White "Kupervaser, Erez"]
[Black "Kochavi, Ori"]
[Result "0-1"]
[ECO "B12"]
[WhiteElo "2331"]
[BlackElo "2326"]
[Annotator "TA"]
[PlyCount "74"]
[EventDate "2022.12.05"]
[EventType "swiss"]
[EventCountry "ISR"]
[SourceTitle "playchess.com"]
[Source "ChessBase"]
[SourceQuality "1"]
[TimeControl "40/5400+30:1800+30"]

{[%evp 9,74,9,15,13,0,0,6,6,13,0,0,0,10,0,0,0,25,18,15,27,41,48,61,24,41,4,8,12,5,0,0,0,0,-20,-15,-16,0,0,0,0,0,0,0,-8,-12,-60,-48,-65,-72,-74,-76,-83,-81,-81,-96,-272,-261,-268,-257,-264,-243,-264,-261,-239,-241,-832,-832]} 1. e4 {[%emt 0:00:02]} c6 {[%emt 0:00:15]} 2. d4 {[%emt 0:00:08]} d5 {[%emt 0:00:02]} 3. e5 {[%emt 0:00:06]} Bf5 {[%emt 0:00:02]} 4. c4 {[%emt 0:01:22]} e6 {[%emt 0:00:09]} 5. Nc3 {[%emt 0:00:06]} Bb4 {[%emt 0:04:07]} 6. cxd5 {[%emt 0:00:54] B12: Caro-Kann: Advance Variation.} cxd5 {[%emt 0:00:21]} 7. h4 {[%emt 0:01:37] [#] Black must now prevent g4.} h6 {[%emt 0:00:04]} 8. g4 {[%emt 0:01:03] The position is equal.} Bh7 {[%emt 0:01:24]} 9. Bd3 {[%emt 0:00:13]} Bxd3 {[%emt 0:00:50]} 10. Qxd3 {[%emt 0:00:02]} Nc6 {[%emt 0:00:08]} 11. Nge2 {[%emt 0:00:19]} Nge7 {[%emt 0:03:52]} 12. h5 {[%emt 0:00:35] [#]} a6 $146 {[%emt 0:02:47]} ({Predecessor:} 12... Qb6 13. Kf1 f6 14. exf6 gxf6 15. Qf3 O-O-O 16. Qxf6 e5 17. Bxh6 exd4 18. Bg7 Rd6 19. Nxd5 Rxd5 {1-0 (27) Torosyan,N (2374)-Davtyan,A (2278) Yerevan 2021}) 13. Bd2 {[%emt 0:05:08]} Qb6 {[%emt 0:09:23]} 14. f4 {[%emt 0:04:19]} Bxc3 {[%emt 0:05:12]} 15. Bxc3 {[%emt 0:01:42]} Qb5 {[%emt 0:00:57] Inhibits f5.} 16. O-O-O {[%emt 0:03:21]} Qc4 {[%emt 0:21:09]} (16... Qxd3 {simplifies} 17. Rxd3 b5 18. Bd2 f5) 17. b3 {[%emt 0:13:51]} Qxd3 {[%emt 0:01:11]} 18. Rxd3 {[%emt 0:00:02]} a5 {[%emt 0:00:07]} 19. Rf1 {[%emt 0:04:31]} f5 {[%emt 0:15:24]} 20. exf6 {[%emt 0:10:01]} gxf6 {[%emt 0:00:03]} 21. f5 {[%emt 0:00:57]} exf5 {[%emt 0:00:04]} 22. gxf5 {[%emt 0:00:19]} Nb4 {[%emt 0:08:15]} 23. Bxb4 {[%emt 0:02:28]} axb4 {[%emt 0:00:02]} 24. Kb1 {[%emt 0:11:33]} Rg8 {[%emt 0:00:14]} 25. Nf4 {[%emt 0:01:29] Against Rg2} Kd7 {[%emt 0:02:59]} 26. Ng6 {[%emt 0:08:15]} Nc6 {[%emt 0:00:42]} 27. Nf4 {[%emt 0:09:31]} (27. Re3 $11) 27... Kd6 $1 $15 {[%emt 0:00:51]} 28. Re3 {[%emt 0:06:51] [#] Re6+ is the strong threat.} Rae8 {[%emt 0:00:31]} (28... Nxd4 29. Rd3 Nb5 30. Nxd5 $16 (30. Rxd5+ Kc6 $17)) 29. Re6+ {[%emt 0:03:01]} Rxe6 {[%emt 0:00:15]} 30. fxe6 $17 {[%emt 0:00:32][%cal Oe6e7][%mdl 4096] Endgame KRN-KRN} (30. Nxe6 Ne7 31. Rf4 b6 $17) 30... Rg4 {[%emt 0:08:36] Against e7} ({Much worse is} 30... Nxd4 $6 31. Rd1 Nxe6 32. Rxd5+ Kc6 33. Rf5 Rg1+ 34. Kb2 Nxf4 35. Rxf4 $11 (35. Rxf6+ Kc5 $11)) 31. Kb2 {[%emt 0:01:50]} f5 {[%emt 0:04:19]} 32. a3 $2 {[%emt 0:00:54] White does not recover from this.} (32. Rf2 $17) 32... bxa3+ $19 {[%emt 0:00:21]} (32... Nxd4 $2 {perishes.} 33. e7 bxa3+ 34. Ka2 Kxe7 35. Nxd5+ Kd6 36. Nf4 $19) 33. Kxa3 {[%emt 0:00:05]} Nxd4 {[%emt 0:00:07]} 34. e7 {[%emt 0:02:32]} Kxe7 {[%emt 0:00:07]} 35. Nxd5+ {[%emt 0:00:10]} Ke6 {[%emt 0:00:23]} 36. Nf4+ {[%emt 0:02:08]} Kf6 {[%emt 0:00:19]} 37. Kb4 $2 {[%emt 0:01:16]} (37. Kb2) 37... Ne6 {[%emt 0:00:06] Weighted Error Value: White=0.38/Black=0.03 (flawless)} 0-1